Cogmind - Beta 17 @@@ ROGUE MODE // 2026.07.30 @ 20:14:51 // Winter2022/Polymind Player: TinyBoulder Result: Self-destructed Performance ------------- Evolutions (3) 1500 Regions Visited (6) 1200 Robots Destroyed (6) 30 Value Destroyed (225) 225 Prototype IDs (0) 0 Alien Tech Used (0) 0 Bonus (3065) 3065 TOTAL SCORE: 5700 Bonus ------- Polymind Skill 3058 Follower Combat Kills 7 Cogmind --------- Core Integrity 450/700 Matter 0/0 Energy 67/100 System Corruption 4% Temperature Cool (6) Movement Core (50) Location -7/Factory Parts ------- > --- POWER (1) -------- (None) > --- PROPULSION (2) --- (None) > --- UTILITY (1) ------ (None) > --- WEAPON (1) ------- (None) > --- INVENTORY (0) ---- (None) Peak State ------------ > --- POWER ------------ Improved Ion Engine > --- PROPULSION ------- Light Treads Light Treads > --- UTILITY ---------- Heat Sink Heat Sink Light Armor Plating > --- WEAPON ----------- Beam Rifle Heavy Assault Rifle > --- INVENTORY -------- (None) [Rating: 11] Favorites ----------- Power Improved Ion Engine Engine Improved Ion Engine Propulsion Light Treads Treads Light Treads Wheel Compact Wheel Hover Unit Hover Unit Flight Unit Flight Unit Utility Heat Sink Device Heat Sink Storage Small Storage Unit Hackware Hacking Suite Protection Light Armor Plating Weapon Beam Rifle Energy Gun Beam Rifle Ballistic Gun Heavy Assault Rifle Special Melee Weapon Datajack Build | -11 -10 -10 -9 -9 -8 -7 ------- Run | Yrd Mat Min Mat Min Mat Fac Slots Evolved . | . . . . . . . Power . | . . . . . . . Propulsion . | . . . . . . . Utility . | . . . . . . . Weapon . | . . . . . . . Parts Attached . | . . . . . . . Power . | . . . . . . . Engine . | . . . . . . . Core . | . . . . . . . Reactor . | . . . . . . . Propulsion . | . . . . . . . Treads . | . . . . . . . Leg . | . . . . . . . Wheel . | . . . . . . . Hover . | . . . . . . . Flight . | . . . . . . . Utility . | . . . . . . . Device . | . . . . . . . Storage . | . . . . . . . Processor . | . . . . . . . Hackware . | . . . . . . . Protection . | . . . . . . . Artifact . | . . . . . . . Weapon . | . . . . . . . Energy Gun . | . . . . . . . Energy Cannon . | . . . . . . . Ballistic Gun . | . . . . . . . Ballistic Cannon . | . . . . . . . Launcher . | . . . . . . . Special Weapon . | . . . . . . . Impact Weapon . | . . . . . . . Slashing Weapon . | . . . . . . . Piercing Weapon . | . . . . . . . Special Melee Weapon . | . . . . . . . Unidentified Prototypes . | . . . . . . . Parts Lost 6 | . . . . 2 1 3 Power 1 | . . . . . . 1 Propulsion 4 | . . . . 1 1 2 Utility . | . . . . . . . Weapon 1 | . . . . 1 . . Highest Loss Streak 3 | . . . . 2 1 3 To Critical Strikes . | . . . . . . . Average Backups . | 1 4 2 . . . . Power . | . . . . . . . Propulsion . | 1 3 2 . . . . Utility . | . . . . . . . Weapon . | . 1 . . . . . Tool/Special . | . . . . . . . Unused Backups 4 | . . 4 . . . . Power . | . . . . . . . Propulsion 3 | . . 3 . . . . Utility . | . . . . . . . Weapon 1 | . . 1 . . . . Tool/Special . | . . . . . . . Average Slot Usage (%) 79 | . 100 92 75 56 90 72 Engine 9 | . 20 16 . . 11 7 Treads 11 | . . . . . 19 16 Wheel 8 | . 40 32 . . . . Flight 5 | . . 8 50 40 3 . Device 15 | . 20 16 . . 19 16 Storage 7 | . 20 16 . . . 6 Protection 5 | . . . . . 9 7 Energy Gun 5 | . . . . . 9 7 Ballistic Gun 7 | . . 4 25 15 9 7 Peak Build Rating 11 | 5 5 5 3 3 11 11 Average Rating 6 | 4 5 4 3 2 9 7 On Entrance 4 | . 5 5 3 3 1 11 Avg Prop Armor Cover (%) . | . . . . . . . Naked Turns 35 | . . 15 . . 7 13 Heaviest Build 18 | 9 9 9 1 1 18 18 Greatest Support 40 | 32 32 32 8 8 40 40 Greatest Overweight (x) . | . . . . . . . Average Overweight (x) . | . . . . . . . Largest Inventory Capacity 4 | 4 4 4 . . 1 1 Average Capacity 1 | 3 4 3 . . . . Most Carried 4 | 4 4 4 . . . . Average Carried . | 1 4 3 . . . . Final Capacity 4 | 4 4 . . . 1 . Final Carried 4 | 4 4 . . . . . Class Distribution -------------------- 48% | Sentry 19% | Recycler 17% | Worker 11% | Swarmer Dominant Class ---------------- Recycler | -10/Materials Recycler | -10/Mines Swarmer | -9/Materials Swarmer | -9/Mines Sentry | -8/Materials Sentry | -7/Factory Resources | -11 -10 -10 -9 -9 -8 -7 ----------- Run | Yrd Mat Min Mat Min Mat Fac Matter Collected 45 | . . . . . 12 33 Remotely . | . . . . . . . Salvage Created 224 | . . . . . 146 78 Parts 10 | . . 1 . . 7 2 Haulers Intercepted . | . . . . . . . Recyclers Shooed 1 | . . . . . 1 . Parts Field Recycled . | . . . . . . . Retrieved Matter . | . . . . . . . Parts Self-Destructed . | . . . . . . . Prevented . | . . . . . . . Parts Restored . | . . . . . . . Kills | -11 -10 -10 -9 -9 -8 -7 ------- Run | Yrd Mat Min Mat Min Mat Fac Combat Hostiles Destroyed 5 | . . 1 . . 3 1 Guns 5 | . . 1 . . 3 1 Classes Destroyed 4 | . . 1 . . 3 . Operator 1 | . . . . . 1 . Swarmer 2 | . . 1 . . 1 . Grunt 2 | . . . . . 1 1 Hunter 1 | . . . . . 1 . Best Kill Streak 2 | . . 1 . . 2 1 Combat Bots Only 1 | . . 1 . . 1 1 Max Kills in Single Turn 2 | . . 1 . . 2 1 Gunslinging . | . . . . . . . Exploded . | . . . . . . . Melee . | . . . . . . . Uniques/NPCs Destroyed . | . . . . . . . Combat | -11 -10 -10 -9 -9 -8 -7 -------- Run | Yrd Mat Min Mat Min Mat Fac Hostile Shots Fired 68 | . . 7 . 24 12 25 Missed 26 | . . 2 . 13 3 8 Hits 42 | . . 5 . 11 9 17 Melee 2 | . . . . 2 . . Projectile 40 | . . 5 . 9 9 17 Part Disruptions 1 | . . . . . . 1 Damage Taken 776 | . . 41 . 175 121 439 Core 402 | . . 29 . 81 42 250 Absorbed by Shields . | . . . . . . . Core Remaining (%) 89 | 100 . 88 . 79 92 . Volleys Fired 22 | . . 4 . . 9 9 Largest 2 | . . 1 . . 2 2 Hottest 79 | . . 20 . . 79 79 Shots Fired 40 | . . 4 . . 18 18 Gun 40 | . . 4 . . 18 18 Cannon . | . . . . . . . Launcher . | . . . . . . . Special . | . . . . . . . Kinetic 22 | . . 4 . . 9 9 Thermal 18 | . . . . . 9 9 Explosive . | . . . . . . . Electromagnetic . | . . . . . . . Robot Hit Streak 7 | . . 2 . . 7 4 Robot Miss Streak 5 | . . 2 . . 3 5 Penetration Max . | . . . . . . . Secondary Targets . | . . . . . . . Shots Hit Robots 22 | . . 2 . . 11 9 Core Hits 14 | . . 1 . . 7 6 Critical Kills . | . . . . . . . Critical Parts Destroyed . | . . . . . . . Critical Strikes 1 | . . . . . . 1 Burn 1 | . . . . . . 1 Melee Attacks . | . . . . . . . Impact . | . . . . . . . Slashing . | . . . . . . . Piercing . | . . . . . . . Sneak Attacks . | . . . . . . . Combat Hostiles . | . . . . . . . Follow-up Attacks . | . . . . . . . Damage Inflicted 454 | . . 18 . . 179 257 Guns 336 | . . 18 . . 179 139 Cannons . | . . . . . . . Explosions 89 | . . . . . . 89 Melee . | . . . . . . . Ramming 29 | . . . . . . 29 Kinetic 185 | . . 18 . . 88 79 Thermal 151 | . . . . . 91 60 Explosive . | . . . . . . . Electromagnetic 89 | . . . . . . 89 Impact . | . . . . . . . Slashing . | . . . . . . . Piercing . | . . . . . . . Highest Corruption 4 | . . . . . . 4 Average Corruption 2 | . . . . . . 2 Corruption Purged . | . . . . . . . Corruption Blocked . | . . . . . . . Effects 3 | . . . . . . 3 Matter Fused 1 | . . . . . . 1 Data Loss (minor) 1 | . . . . . . 1 Data Loss (major) 1 | . . . . . . 1 Overload Shots . | . . . . . . . Overflow Damage 18 | . . . . . . 18 Projectiles . | . . . . . . . Explosions 18 | . . . . . . 18 Melee . | . . . . . . . Knockbacks . | . . . . . . . Impact . | . . . . . . . Kinetic . | . . . . . . . Secondary . | . . . . . . . Self-Inflicted Damage 225 | . . . . . . 225 Shots 5 | . . . . . . 5 Rammed 11 | . . . . . . 11 Targets Rammed 11 | . . . . . . 11 Kicked . | . . . . . . . Crushed . | . . . . . . . Highest Temperature 11 | . . 8 . 3 10 11 Average Temperature 5 | . . 5 . 3 6 4 Received Heat Transfer 116 | . . . . 20 45 51 Siege Activations . | . . . . . . . Martial Activations . | . . . . . . . Shielding Activations . | . . . . . . . Robots Disrupted . | . . . . . . . Combat Hostiles . | . . . . . . . Robots Corrupted . | . . . . . . . Combat Hostiles . | . . . . . . . Parts Fried . | . . . . . . . Impact Corruptions . | . . . . . . . Robots Melted . | . . . . . . . Combat Hostiles . | . . . . . . . Parts Melted . | . . . . . . . Heat Transferred 444 | . . . . . 222 222 Parts Sabotaged . | . . . . . . . Parts Stolen . | . . . . . . . Parts Stripped . | . . . . . . . Power Chain Reactions 2 | . . . . . . 2 Alert | -11 -10 -10 -9 -9 -8 -7 ------- Run | Yrd Mat Min Mat Min Mat Fac Maximum Alert Level . | . . . . . . . Low Security (%) 100 | 100 100 100 100 100 100 100 Level 1 . | . . . . . . . Level 2 . | . . . . . . . Level 3 . | . . . . . . . Level 4 . | . . . . . . . Level 5 . | . . . . . . . High Security . | . . . . . . . Max Security . | . . . . . . . Peak Influence 74 | . 4 40 7 . 45 74 Initial 7 | . . . 7 . . 2 Average 13 | . . 4 4 . 22 17 Influence Increases 402 | . 4 62 . . 136 200 Destroy 0b10 Robot/C 120 | . . 40 . . 60 20 Destroy 0b10 Robot/NC 5 | . . . . . 5 . Destroy Leader 20 | . . 10 . . 10 . Allied During Kill 2 | . . 2 . . . . Trap Triggered on 0b10 10 | . . 10 . . . . Successful Hack 4 | . 4 . . . . . Disable Machine 60 | . . . . . . 60 Destroy Structure 1 | . . . . . 1 . Partial Spotted 60 | . . . . . 45 15 Lose Combat Pursuer 120 | . . . . . 15 105 Influence Decreases 371 | . 4 42 20 . 130 175 Entered New Map 17 | . . . 13 . . 4 Time Decay 282 | . 4 20 7 . 110 141 Lost Part 40 | . . . . . 10 30 Lost Ally 22 | . . 22 . . . . Purge Threat 5 | . . . . . 5 . Miscellaneous 5 | . . . . . 5 . Squads Dispatched 4 | . . . . . . 4 Investigation . | . . . . . . . Extermination 1 | . . . . . . 1 Reinforcement 3 | . . . . . . 3 Assault . | . . . . . . . Garrison . | . . . . . . . Intercept . | . . . . . . . Searches Triggered . | . . . . . . . Construction Impeded 1 | . . . . . . 1 Haulers Reinforced . | . . . . . . . Active Scanning Responses . | . . . . . . . Cargo Convoy Interrupts . | . . . . . . . Stealth | -11 -10 -10 -9 -9 -8 -7 --------- Run | Yrd Mat Min Mat Min Mat Fac Distress Signals 4 | . . . . . 2 2 Communications Jammed . | . . . . . . . Distress Signals . | . . . . . . . Times Spotted 51 | . . 4 . 19 12 16 Peak Tracking Total 19 | . . 3 . 19 4 4 Tactical Retreats 5 | . . . . 2 1 2 Traps | -11 -10 -10 -9 -9 -8 -7 ------- Run | Yrd Mat Min Mat Min Mat Fac Traps Triggered . | . . . . . . . Indirectly . | . . . . . . . Trap Hack Attempts . | . . . . . . . Triggered . | . . . . . . . Disarmed . | . . . . . . . Reprogrammed . | . . . . . . . Reused 1 | . . 1 . . . . Traps Extracted . | . . . . . . . Installed 2 | . . 2 . . . . Triggered 1 | . . 1 . . . . Most Traps Carried 4 | . . 4 . . . . Machines | -11 -10 -10 -9 -9 -8 -7 ---------- Run | Yrd Mat Min Mat Min Mat Fac Machines Disabled 4 | . . . . . . 4 Max in Single Turn 4 | . . . . . . 4 Machines Repaired . | . . . . . . . Machines Dismantled . | . . . . . . . Machines Sabotaged . | . . . . . . . Overloaded Fab Kills . | . . . . . . . Hacking | -11 -10 -10 -9 -9 -8 -7 --------- Run | Yrd Mat Min Mat Min Mat Fac Machines Accessed 2 | . 1 . . . 1 . Terminals 2 | . 1 . . . 1 . Fabricators . | . . . . . . . Repair Stations . | . . . . . . . Recycling Units . | . . . . . . . Scanalyzers . | . . . . . . . Garrison Access . | . . . . . . . Total Hacks 10 | . 2 . . . 8 . Successful 9 | . 1 . . . 8 . Failed 1 | . 1 . . . . . Catastrophic . | . . . . . . . Database Lockouts . | . . . . . . . Manual 2 | . 2 . . . . . Terminals 10 | . 2 . . . 8 . Fabricators . | . . . . . . . Repair Stations . | . . . . . . . Recycling Units . | . . . . . . . Scanalyzers . | . . . . . . . Garrison Access . | . . . . . . . Terminal Hacks 8 | . . . . . 8 . Record 2 | . . . . . 2 . Alert Level 5 | . . . . . 5 . Unreport Threat 1 | . . . . . 1 . Fabricator Hacks . | . . . . . . . Repair Station Hacks . | . . . . . . . Recycling Unit Hacks . | . . . . . . . Scanalyzer . | . . . . . . . Garrison Access Hacks . | . . . . . . . Unauthorized Hacks 1 | . 1 . . . . . Terminals 1 | . 1 . . . . . Skim 1 | . 1 . . . . . Fabricators . | . . . . . . . Repair Stations . | . . . . . . . Recycling Units . | . . . . . . . Scanalyzers . | . . . . . . . Garrison Access . | . . . . . . . Data Cores Recovered . | . . . . . . . Used . | . . . . . . . Hacking Detections 2 | . 1 . . . 1 . Full Trace Events . | . . . . . . . Feedback Events . | . . . . . . . Feedback Blocked . | . . . . . . . Robot Schematics Acquired . | . . . . . . . Robots Built . | . . . . . . . Authchips . | . . . . . . . Time . | . . . . . . . Total Robot Build Rating . | . . . . . . . Part Schematics Acquired . | . . . . . . . Parts Built . | . . . . . . . Authchips . | . . . . . . . Time . | . . . . . . . Total Part Build Rating . | . . . . . . . Part Studies Acquired . | . . . . . . . Parts Repaired . | . . . . . . . Time . | . . . . . . . Parts Recycled . | . . . . . . . Recycled Matter . | . . . . . . . Retrieved Matter . | . . . . . . . Retrieved Components . | . . . . . . . Parts Scanalyzed . | . . . . . . . Part Schematics Acquired . | . . . . . . . Parts Damaged . | . . . . . . . Bothacking | -11 -10 -10 -9 -9 -8 -7 ------------ Run | Yrd Mat Min Mat Min Mat Fac Used RIF Installer . | . . . . . . . Robots Hacked 4 | . . 1 . . 2 1 Non-combat 2 | . . . . . 1 1 Combat 2 | . . 1 . . 1 . Robot Hacks Applied 5 | . . 1 . . 3 1 find_chute 1 | . . . . . . 1 find_terminals 1 | . . . . . 1 . find_shortcuts 2 | . . 1 . . 1 . find_garrison 1 | . . . . . 1 . Relay Couplers Released . | . . . . . . . Fabnet Peak Effective % . | . . . . . . . Robots Rewired . | . . . . . . . Allies Hacked . | . . . . . . . Hacks Repelled . | . . . . . . . Allies | -11 -10 -10 -9 -9 -8 -7 -------- Run | Yrd Mat Min Mat Min Mat Fac Total Allies 5 | . . 5 . . . . Largest Group 3 | . . 2 3 . . . Highest-Rated Group 52 | . . 52 40 . . . Highest-Rated Ally 31 | . . 31 16 . . . Total Orders . | . . . . . . . Ally Attacks 6 | . . 6 . . . . Total Damage 104 | . . 104 . . . . Kills 1 | . . 1 . . . . Allies Corrupted . | . . . . . . . Allies Melted . | . . . . . . . Intel | -11 -10 -10 -9 -9 -8 -7 ------- Run | Yrd Mat Min Mat Min Mat Fac Active Infowar (turns) . | . . . . . . . Robot Analysis Total 5 | 1 . 1 . . 2 1 Derelict Logs Recovered 3 | . . 1 . 2 . . Drone Launches . | . . . . . . . Drone Recoveries . | . . . . . . . Exploration | -11 -10 -10 -9 -9 -8 -7 ------------- Run | Yrd Mat Min Mat Min Mat Fac Turns Passed 1511 | 44 61 286 33 69 225 793 Spaces Moved 1707 | 45 62 331 89 180 185 815 Core 538 | 10 . 14 . . 14 500 Treads 409 | . . . . . 98 311 Legs . | . . . . . . . Wheels 319 | 35 62 218 . . . 4 Hover 33 | . . . . . 33 . Flight 408 | . . 99 89 180 40 . Fastest Speed 37 | 50 100 37 37 37 40 50 Average Speed 82 | 88 100 79 37 38 107 92 Slowest Speed 160 | 100 100 100 37 40 160 160 Overloaded Moves . | . . . . . . . Propulsion Burnouts . | . . . . . . . Robots Hopped 4 | . . 1 . 3 . . Potential Cave-ins . | . . . . . . . Cave-ins Triggered . | . . . . . . . Exploration Rate (%) 33 | 3 23 61 22 76 20 32 Regions Visited 6 Branch Regions 2 Pre-discovered Areas 2 | . . 1 . 1 . . Known Exits Taken . | . . . . . . . Unknown Exits Taken 6 | 1 1 1 1 1 1 . Scrap Searched 1 | . . 1 . . . . Spaces Dug . | . . . . . . . Terrain Destroyed . | . . . . . . . Melee . | . . . . . . . Projectile . | . . . . . . . AOE . | . . . . . . . Terrain Rammed . | . . . . . . . Walls Destroyed . | . . . . . . . Machines Disabled . | . . . . . . . Actions | -11 -10 -10 -9 -9 -8 -7 --------- Run | Yrd Mat Min Mat Min Mat Fac Total 1759 | 48 61 353 88 176 194 839 Wait 13 | . . 8 . . 1 4 Move 1694 | 44 61 328 88 174 184 815 Hop 3 | . . 1 . 2 . . Pick Up 8 | 4 . 4 . . . . Fast Attach . | . . . . . . . Attach . | . . . . . . . Detach . | . . . . . . . Swap . | . . . . . . . Drop 6 | . . 6 . . . . Fire 22 | . . 4 . . 9 9 Melee . | . . . . . . . Ram 11 | . . . . . . 11 Kick . | . . . . . . . Crush . | . . . . . . . Escape Stasis . | . . . . . . . Rewire . | . . . . . . . Trap 2 | . . 2 . . . . Miscellaneous . | . . . . . . . Route ------- -11/Scrapyard -10/Materials -10/Mines -9/Materials -9/Mines -8/Materials -7/Factory History --------- Turn | Location | Event 5 | -11/Scrapyard | Discovered new exit (range 15) 45 | -11/Scrapyard | Entered Materials 95 | -10/Materials | Discovered new exit (range 12) 106 | -10/Materials | Entered Mines 300 | -10/Mines | Found a hidden stash of uninstalled traps 374 | -10/Mines | Learned location of Storage (-8) 380 | -10/Mines | Received a Mining Laser from a helpful Derelict 389 | -10/Mines | Discovered new exit (range 5) 391 | -10/Mines | Assisted by bots powering up and referring to "LRC-V3" 392 | -10/Mines | Entered Materials 392 | -9/Materials | Accompanied by 3 allies 422 | -9/Materials | Discovered new exit (range 8) 425 | -9/Materials | Entered Mines 432 | -9/Mines | Received a Rocket Launcher from a helpful Derelict 444 | -9/Mines | Assembled infested the area 444 | -9/Mines | Met a Derelict bent on vengeance 473 | -9/Mines | Learned 2 Materials zone layouts 492 | -9/Mines | Discovered new exit (range 7) 494 | -9/Mines | Entered Materials 648 | -8/Materials | Discovered new exit (range 5) 719 | -8/Materials | Entered Factory 1279 | -7/Factory | Lost 3 parts (1p2n) 1512 | -7/Factory | Self-destructed Last Messages --------------- data lost. 01407_ K-01 Serf cleans the Fusion Modulator. 01408_ Cleaned Fusion Modulator. 01413_ K-01 Serf cleans the Fusion Modulator. 01414_ Cleaned Fusion Modulator. 01422_ O-24 Administrator: "IFF HANDSHAKE FAILED. SECURING TERMINAL." 01430_ ALERT: Hostiles spotted, dispatching reinforcements to Terminal F009. 01433_ Cleaned Assembly Bed. 01441_ System corrupted: Matter fused (-10). 01442_ Cleaned Nuclear Reactor. 01447_ Cleaned Fabricator. 01455_ Collected debris. 01490_ Cleaned Manufacturing Mainframe. 01500_ Released control of K-01 Serf. 01501_ Slammed into P-60 Hacker. 01502_ K-01 Serf reactivates. 01502_ Slammed into P-60 Hacker. 01511_ Destabilizing: System corrupted (+1). Map ----- +----------------------------------------------------+ | "" #?????????????????????????????????????# """ | | "" =#???###+###??????????????????????????# // | | "" #???# #?????????????????????? #???# / | | ###+##### #???????????????????? #???# | | ########???????????? #???######## | | # = #???????? #?????? ! / | | # #????? """""" #?????# | | # ![ #???# """""" #?????#""" | | "" # ![ #???# """""" #?????#""" | | !!! "" #* ![ #???# """""" =#?????#""" ! | | !! F" #? ????# #?????# | | ### !! "" #?##+#############+###############+# | | ??# ### # | | ??# # ^ #### | | ??# #### ######## # #??? | | ?##+####+##?????## #??# | | ?? [! ??????# #??# | | ??" !! ??????# #??# | | ??" ! #?????# #??# | | ??? #?????# # T###########+####### | | ???? ! ####### ####???# ## | | ????""" # #??????# ## | | ??? """ # #??????# !!* """" ## | | ??" """ # ######## !** """" ## | | ? # %%%k + !** """" #? | | ???? "" "" + Y @%%######## """" #? | | ???? ""T"" # p #??????# #? | | ????? """ # r #??????# """" #? | | ###???#### # ####+#####??????# """" #? | | ########## #? ???????????# """" #? | | # # ????????????# / """" ??? | | # # ?????????????# ???? | | # # ??????????????###########???? | | # #?????????????????????????????? | | # #?????????????????????????????? | | # #?????????????????????????????? | | # #?????????????????????????????? | | # #####+#########????????????????????????? | | # # #????????????????????????? | | # # """ """ """ #????????????????????????? | | # # """ """ """ #????????????????????????? | | # # """ """ """ #????????????????????????? | | # # #????????????????????????? | | ! + + """ """ """ #????????????????????????? | | # # """ """ """ #????????????????????????? | | # # """ """ """ #????????????????????????? | | # # #????????????????????????? | | ### # ! #????????????????????????? | | # [ #????????????????????????? | | #####+#########????????????????????????? | +----------------------------------------------------+ Best States ------------- Heat Dissipation 39 Energy Generation 17 Energy Capacity 215 Matter Stores 100 Matter Capacity 125 Sight Range 16 Terrain Scan Density 10 Armor Coverage 150 Resistance: EX 50 Resistance: I 25 Evasion (%) 62 Recoil Reduction 2 Offensive Hacking 10 Item Schematics ----------------- None Robot Schematics ------------------ None Fabricated ------------ Nothing Repaired ---------- Nothing Studied --------- None Alien Tech Used ----------------- None Achievements -------------- None Challenges ------------ None Polymind | -11 -10 -10 -9 -9 -8 -7 ---------- Run | Yrd Mat Min Mat Min Mat Fac Hosts 5 | 1 . 1 . . 2 1 Combat Hostiles 2 | . . 1 . . 1 . Allies . | . . . . . . . Unique Host Classes 5 | 1 . 1 . . 2 1 Average Host Suspicion 67 | 6 49 57 23 42 92 73 Unsuspicious Activity 298 | 2 . . . . 51 245 Returns to Shadow 1 | . . . . . . 1 Fuzzy Dispatches 1 | . . . . . . 1 Protomatter Created 40 | . . 20 . 16 4 . Used 44 | 5 . 6 . . 28 5 Decayed 28 | . . 12 . 16 . . Highest Spend 23 | 5 . 6 . . 23 5 Top 5 Hosts by Kills: Y-45 Defender (-8/Materials: 4) S-10 Pest (-10/Mines: 1) Game ------ Seed CorruptionFocalImmobilizer Manual? 0 Play Time 00:19:55 Cumulative 142.5 hours Start 2026.07.30 @ 19:57:43 End 2026.07.30 @ 20:14:51 Sessions 1 Manual Loads 0 Difficulty Rogue Special Mode Winter2022/Polymind Game No. 126 Rogue 125 Adventurer 0 Explorer 1 Win Type - Total 8 Types 5/0/1/1/0/0/0/1/0/0 Lore% 75 Gallery% 65 Achievement% 45 Wizard Run 0 Options --------- Layout 1 ASCII 0 Keyboard 0 Movement Arrows Keybinds 0 Fullscreen 1 Font 24/Smallcaps Map View 50x35 Zoom Use 0% Tactical HUD 1 Map Filters NONE Filters NONE Steam 1 RUN: ccea116a-ccf0-4d91-857b-2545c2263c33